bitfinex/quotes_BTCUSD_20241013
["timestamp","ask_amount","ask_price","bid_price","bid_amount"]
[1728818870876,0.35609258,62765.0,62764.0,0.0166318]
[1728818871319,0.37009258,62765.0,62764.0,0.0166318]
[1728818871590,0.84512461,62765.0,62764.0,0.0166318]
[1728818871809,0.99287379,62765.0,62764.0,0.0166318]
[1728818872243,1.00687379,62765.0,62764.0,0.0166318]
[1728818872464,1.15989052,62765.0,62764.0,0.0166318]
[1728818872648,1.17389052,62765.0,62764.0,0.0166318]
[1728818873110,1.15989052,62765.0,62764.0,0.0166318]
[1728818873350,1.19885593,62765.0,62764.0,0.0166318]
[1728818874537,1.18485593,62765.0,62764.0,0.0166318]
[1728818874957,1.19885593,62765.0,62764.0,0.0166318]
[1728818876055,1.02310675,62765.0,62764.0,0.0166318]
[1728818876266,0.87009002,62765.0,62764.0,0.0186318]
[1728818876480,0.87009002,62765.0,62764.0,0.0955318]
[1728818876906,0.87009002,62765.0,62764.0,0.0935318]
[1728818877120,1.04572532,62765.0,62764.0,0.0935318]
[1728818877326,1.04572532,62765.0,62764.0,0.0955318]
[1728818877608,0.92436332,62765.0,62764.0,0.0955318]
[1728818877841,0.92436332,62765.0,62764.0,0.1736318]
[1728818878065,0.79209692,62765.0,62764.0,0.1736318]
[1728818878276,0.72072802,62765.0,62764.0,0.1736318]
[1728818878490,0.73472802,62765.0,62764.0,0.1736318]
[1728818878710,0.74872802,62765.0,62764.0,0.1736318]
[1728818878955,0.80976261,62765.0,62764.0,0.1736318]
[1728818879178,0.87131864,62765.0,62764.0,0.1736318]
[1728818879390,0.80976261,62765.0,62764.0,0.1736318]
[1728818879818,0.82376261,62765.0,62764.0,0.1736318]
[1728818880075,0.85731864,62765.0,62764.0,0.1736318]
[1728818880274,0.80976261,62765.0,62764.0,0.1736318]
[1728818881886,0.82376261,62765.0,62764.0,0.1736318]
[1728818882116,0.84872497,62765.0,62764.0,0.1736318]
[1728818882356,0.83472497,62765.0,62764.0,0.1736318]
[1728818882582,0.84872497,62765.0,62764.0,0.1736318]
[1728818882824,0.83472497,62765.0,62764.0,0.1736318]
[1728818883058,0.82072497,62765.0,62764.0,0.1736318]
[1728818883272,1.32072497,62765.0,62764.0,0.1736318]
[1728818883506,1.33472497,62765.0,62764.0,0.1716318]
[1728818883704,1.34872497,62765.0,62764.0,0.1736318]
[1728818884969,1.33472497,62765.0,62764.0,0.1736318]
[1728818885463,1.32072497,62765.0,62764.0,0.1736318]
[1728818885697,1.32072497,62765.0,62764.0,0.1746318]
[1728818885698,1.33472497,62765.0,62764.0,0.1746318]
[1728818885923,1.34872497,62765.0,62764.0,0.1746318]
[1728818886139,1.33472497,62765.0,62764.0,0.1746318]
[1728818886344,1.32072497,62765.0,62764.0,0.1736318]
[1728818886562,1.33472497,62765.0,62764.0,0.1736318]
[1728818886769,1.34672497,62765.0,62764.0,0.1746318]
[1728818887009,1.34672497,62765.0,62764.0,0.1726318]
[1728818887225,1.34672497,62765.0,62764.0,0.1746318]
[1728818887430,1.24672497,62765.0,62764.0,0.1746318]
[1728818888558,1.22176261,62765.0,62764.0,0.1746318]
[1728818889199,1.22176261,62765.0,62764.0,0.1726318]
[1728818889426,1.19576261,62765.0,62764.0,0.1736318]
[1728818889665,1.20976261,62765.0,62764.0,0.1756318]
[1728818889869,1.22176261,62765.0,62764.0,0.1756318]
[1728818890079,1.22176261,62765.0,62764.0,0.1736318]
[1728818890298,1.20976261,62765.0,62764.0,0.1736318]
[1728818891656,1.0485386,62765.0,62764.0,0.1736318]
[1728818891872,1.08749817,62765.0,62764.0,0.1756318]
[1728818892084,1.08749817,62765.0,62764.0,0.1736318]
[1728818892516,1.09349817,62765.0,62764.0,0.1746318]
[1728818893699,1.09349817,62765.0,62764.0,0.1766318]
[1728818894148,0.59349817,62765.0,62764.0,0.1766318]
[1728818894573,0.59349817,62765.0,62764.0,0.1746318]
[1728818895208,0.59349817,62765.0,62764.0,0.1736318]
[1728818895423,0.55949817,62765.0,62764.0,0.1736318]
[1728818895646,0.55949817,62765.0,62764.0,0.1766318]
[1728818895869,0.57449817,62765.0,62764.0,0.1746318]
[1728818896051,0.56549817,62765.0,62764.0,0.1766318]
[1728818896299,0.55949817,62765.0,62764.0,0.1756318]
[1728818896532,0.56749817,62765.0,62764.0,0.1716318]
[1728818896746,0.56749817,62765.0,62764.0,0.1736318]
[1728818898118,0.72872218,62765.0,62764.0,0.1736318]
[1728818899001,0.72872218,62765.0,62764.0,0.0186318]
[1728818899237,0.74009651,62765.0,62764.0,0.0186318]
[1728818899473,0.70376261,62765.0,62764.0,0.0186318]
[1728818900346,0.70876261,62765.0,62764.0,0.0196318]
[1728818900566,0.70076261,62765.0,62764.0,0.0196318]
[1728818900786,0.70076261,62765.0,62764.0,0.0176318]
[1728818901620,0.70076261,62765.0,62764.0,0.0196318]
[1728818901832,0.69576261,62765.0,62764.0,0.0186318]
[1728818902341,1.13039404,62765.0,62764.0,0.0176318]
[1728818902550,1.14339404,62765.0,62764.0,0.0176318]
[1728818902763,1.19086881,62765.0,62764.0,0.0176318]
[1728818903005,1.17786881,62765.0,62764.0,0.0176318]
[1728818903239,1.12139404,62765.0,62764.0,0.0166318]
[1728818903450,1.13539404,62765.0,62764.0,0.0166318]
[1728818903666,1.13539404,62765.0,62764.0,0.0176318]
[1728818904102,1.14939404,62765.0,62764.0,0.0176318]
[1728818904298,1.13539404,62765.0,62764.0,0.0176318]
[1728818904538,1.31064212,62765.0,62764.0,0.0176318]
[1728818905231,1.29664212,62765.0,62764.0,0.0166318]
[1728818905689,1.43432865,62765.0,62764.0,0.0166318]
[1728818906275,1.30164212,62765.0,62764.0,0.0166318]
[1728818906475,1.31564212,62765.0,62764.0,0.0166318]
[1728818906861,1.32964212,62765.0,62764.0,0.0166318]
[1728818907949,1.15439404,62765.0,62764.0,0.0166318]
[1728818908177,1.65439404,62765.0,62764.0,0.0166318]
[1728818908831,1.82967647,62765.0,62764.0,0.0166318]
[1728818909293,1.80472069,62765.0,62764.0,0.0166318]
[1728818912196,1.82968703,62765.0,62764.0,0.0166318]
[1728818912921,1.65439921,62765.0,62764.0,0.0166318]
[1728818913911,1.82969817,62765.0,62764.0,0.0166318]
[1728818914146,1.67103021,62765.0,62764.0,0.0166318]
[1728818914369,1.8463267,62765.0,62764.0,0.0166318]
[1728818916095,1.84632298,62765.0,62764.0,0.0166318]
[1728818916327,1.85530907,62765.0,62764.0,0.0166318]
[1728818917972,1.83867807,62765.0,62764.0,0.0166318]
[1728818918695,1.81371173,62765.0,62764.0,0.0166318]
[1728818918928,1.79971173,62765.0,62764.0,0.0166318]
[1728818919339,1.81371173,62765.0,62764.0,0.0166318]
[1728818919565,1.79971173,62765.0,62764.0,0.0166318]
[1728818920075,1.81371173,62765.0,62764.0,0.0166318]
[1728818920312,1.79971173,62765.0,62764.0,0.0166318]
[1728818920757,1.81371173,62765.0,62764.0,0.0166318]
[1728818921217,2.00527369,62765.0,62764.0,0.0166318]
[1728818921457,2.43167524,62765.0,62764.0,0.0166318]
[1728818921671,2.57402812,62765.0,62764.0,0.0166318]
[1728818921923,2.3537739,62765.0,62764.0,0.0166318]
[1728818922173,1.24873168,62765.0,62764.0,0.0186318]
[1728818923078,1.23473168,62765.0,62764.0,0.0186318]
[1728818923377,1.22073168,62765.0,62764.0,0.0186318]
[1728818923599,1.24873168,62765.0,62764.0,0.0186318]
[1728818924036,1.23473168,62765.0,62764.0,0.0186318]
[1728818924254,1.33473168,62765.0,62764.0,0.0186318]
[1728818924470,1.34873168,62765.0,62764.0,0.0186318]
[1728818924914,1.33473168,62765.0,62764.0,0.0186318]
[1728818925145,1.34873168,62765.0,62764.0,0.0186318]
[1728818925389,1.33473168,62765.0,62764.0,0.0186318]
[1728818925844,1.34873168,62765.0,62764.0,0.0186318]
[1728818926061,1.32073168,62765.0,62764.0,0.0186318]
[1728818926276,1.33473168,62765.0,62764.0,0.0186318]
[1728818926510,1.34873168,62765.0,62764.0,0.0186318]
[1728818926955,1.33473168,62765.0,62764.0,0.0186318]
[1728818927410,1.34873168,62765.0,62764.0,0.0186318]
[1728818927842,1.33473168,62765.0,62764.0,0.0186318]
[1728818928060,1.34873168,62765.0,62764.0,0.1001318]
[1728818928758,1.22073168,62765.0,62764.0,0.1001318]
[1728818928996,1.20976261,62765.0,62764.0,0.1001318]
[1728818929219,1.19576261,62765.0,62764.0,0.1001318]
[1728818929436,1.20976261,62765.0,62764.0,0.1001318]
[1728818929652,1.22376261,62765.0,62764.0,0.1001318]
[1728818929868,0.70976261,62765.0,62764.0,0.1001318]
[1728818930099,1.19576261,62765.0,62764.0,0.1001318]
[1728818930317,1.20776261,62765.0,62764.0,0.1001318]
[1728818930790,1.20776261,62765.0,62764.0,0.2131318]
[1728818931070,1.19576261,62765.0,62764.0,0.2131318]
[1728818931285,1.20976261,62765.0,62764.0,0.2131318]
[1728818931515,1.22176261,62765.0,62764.0,0.0186318]
[1728818932690,1.20776261,62765.0,62764.0,0.0186318]
[1728818932910,1.22176261,62765.0,62764.0,0.0186318]
[1728818933135,1.20976261,62765.0,62764.0,0.0186318]
[1728818933355,1.24672323,62765.0,62764.0,0.0186318]
[1728818933817,1.23472323,62765.0,62764.0,0.0186318]
[1728818934067,1.47695955,62765.0,62764.0,0.0186318]
[1728818934290,1.47695955,62765.0,62764.0,0.0166318]
[1728818934291,1.58895955,62765.0,62764.0,0.0166318]
[1728818935203,1.62243767,62765.0,62764.0,0.0166318]
[1728818935704,1.63643767,62765.0,62764.0,0.0166318]
[1728818936377,1.62444177,62765.0,62764.0,0.0166318]
[1728818936621,1.58895955,62765.0,62764.0,0.0166318]
[1728818936871,1.51280593,62765.0,62764.0,0.0166318]
[1728818937088,1.46532323,62765.0,62764.0,0.0166318]
[1728818937580,1.53654042,62765.0,62764.0,0.0166318]
[1728818938240,1.41794042,62765.0,62764.0,0.0166318]
[1728818939209,1.3929798,62765.0,62764.0,0.0166318]
[1728818939429,1.32176261,62765.0,62764.0,0.0186318]
[1728818940348,1.36926398,62765.0,62764.0,0.0186318]
[1728818940650,1.32176261,62765.0,62764.0,0.0186318]
[1728818941775,1.22176261,62765.0,62764.0,0.0186318]
[1728818942220,1.24672465,62765.0,62764.0,0.0186318]
[1728818943125,1.34672465,62765.0,62764.0,0.0186318]
[1728818945408,1.34672465,62765.0,62764.0,0.0166318]
[1728818945639,1.34672465,62765.0,62764.0,0.0186318]
[1728818947221,1.34872465,62765.0,62764.0,0.0186318]
[1728818947476,1.46732465,62765.0,62764.0,0.0186318]
[1728818949254,1.44236261,62765.0,62764.0,0.0186318]
[1728818949905,1.51367645,62765.0,62764.0,0.0166318]
[1728818950107,1.44236261,62765.0,62764.0,0.0166318]
[1728818950408,1.71293912,62765.0,62764.0,0.0166318]
[1728818950826,1.617854,62765.0,62764.0,0.0166318]
[1728818951732,1.71293912,62765.0,62764.0,0.0166318]
[1728818951965,1.617854,62765.0,62764.0,0.0166318]
[1728818952182,1.86132371,62765.0,62764.0,0.0166318]
[1728818952412,2.00514469,62765.0,62764.0,0.0166318]
[1728818952632,1.91428829,62765.0,62764.0,0.0166318]
[1728818953507,1.90228829,62765.0,62764.0,0.0166318]
[1728818954007,1.91628829,62765.0,62764.0,0.0166318]
[1728818954669,1.90228829,62765.0,62764.0,0.0166318]
[1728818955119,1.91628829,62765.0,62764.0,0.0166318]
[1728818955368,1.91128829,62765.0,62764.0,0.0166318]
[1728818955620,1.89728829,62765.0,62764.0,0.0166318]
[1728818955856,1.74991858,62765.0,62764.0,0.0166318]
[1728818956300,1.72691858,62765.0,62764.0,0.0166318]
[1728818957264,1.84578274,62765.0,62764.0,0.0166318]
[1728818957729,1.72691858,62765.0,62764.0,0.0166318]
[1728818958142,1.82202591,62765.0,62764.0,0.0166318]
[1728818958607,1.60831858,62765.0,62764.0,0.0166318]
[1728818958822,1.70343627,62765.0,62764.0,0.0166318]
[1728818959300,1.88732371,62765.0,62764.0,0.0166318]
[1728818961119,1.89232371,62765.0,62764.0,0.0166318]
[1728818962314,1.91729099,62765.0,62764.0,0.0166318]
[1728818963744,1.91739818,62765.0,62764.0,0.0166318]
[1728818964204,2.16322802,62765.0,62764.0,0.0166318]
[1728818964829,2.06010833,62765.0,62764.0,0.0166318]
[1728818965288,2.16323074,62765.0,62764.0,0.0166318]
[1728818968000,2.21233255,62765.0,62764.0,0.0166318]
[1728818968451,2.46801652,62765.0,62764.0,0.0166318]
[1728818968686,2.45401652,62765.0,62764.0,0.0166318]
[1728818968930,3.04901141,62765.0,62764.0,0.0166318]
[1728818969162,3.49292541,62765.0,62764.0,0.0166318]
[1728818970228,3.47892541,62765.0,62764.0,0.0166318]
[1728818970439,3.50692541,62765.0,62764.0,0.0166318]
[1728818970899,3.49292541,62765.0,62764.0,0.0166318]
[1728818971329,3.41786241,62765.0,62764.0,0.0166318]
[1728818971544,3.40207141,62765.0,62764.0,0.0166318]
[1728818972247,3.37710413,62765.0,62764.0,0.0166318]
[1728818972926,2.95561202,62765.0,62764.0,0.0166318]
[1728818973138,3.28449496,62765.0,62764.0,0.0166318]
[1728818974472,2.76815096,62765.0,62764.0,0.0166318]
[1728818975159,2.79311824,62765.0,62764.0,0.0166318]
[1728818976343,2.79313271,62765.0,62764.0,0.0166318]
[1728818978242,2.16303601,62765.0,62764.0,0.0166318]
[1728818979022,2.21213782,62765.0,62764.0,0.0166318]
[1728818979506,0.005,62762.0,62761.0,0.0005]
[1728818979774,0.47752401,62762.0,62761.0,0.0005]
[1728818980018,0.68874034,62762.0,62761.0,0.0005]
[1728818980264,0.70539388,62762.0,62761.0,0.0005]
[1728818980965,0.71939388,62762.0,62761.0,0.0005]
[1728818981196,0.88076359,62762.0,62761.0,0.0005]
[1728818981650,0.89476359,62762.0,62761.0,0.0005]
[1728818982380,0.71924842,62762.0,62761.0,0.0005]
[1728818982621,0.89477949,62762.0,62761.0,0.0005]
[1728818985191,0.73340978,62762.0,62761.0,0.0005]
[1728818985415,0.7583792,62762.0,62761.0,0.0005]
[1728818985647,0.7533792,62762.0,62761.0,0.0005]
[1728818985866,0.5420792,62762.0,62761.0,0.0005]
[1728818986080,0.76654813,62762.0,62761.0,0.0005]
[1728818986543,0.76654813,62762.0,62761.0,0.0025]
[1728818986992,0.75254813,62762.0,62761.0,0.0025]
[1728818987271,0.76654813,62762.0,62761.0,0.0025]
[1728818987901,0.83854813,62762.0,62761.0,0.0025]
[1728818988352,0.86654813,62762.0,62761.0,0.0025]
[1728818988838,0.90010611,62762.0,62761.0,0.0025]
[1728818989061,0.82757871,62762.0,62761.0,0.0025]
[1728818989272,0.84157871,62762.0,62761.0,0.0025]
[1728818989692,0.88913669,62762.0,62761.0,0.0025]
[1728818990433,0.88913669,62762.0,62761.0,0.0005]
[1728818990434,0.91291528,62762.0,62761.0,0.0005]
[1728818990650,1.0171898,62762.0,62761.0,0.0005]
[1728818990874,1.09830576,62762.0,62761.0,0.0005]
[1728818991096,1.08430576,62762.0,62761.0,0.0005]
[1728818991324,1.09830576,62762.0,62761.0,0.0005]
[1728818991547,1.01721253,62762.0,62761.0,0.0005]
[1728818991776,1.00321253,62762.0,62761.0,0.0005]
[1728818992003,1.08432849,62762.0,62761.0,0.0005]
[1728818992214,1.12329488,62762.0,62761.0,0.0005]
[1728818992641,1.13729488,62762.0,62761.0,0.0005]
[1728818993773,1.13729488,62762.0,62761.0,0.001319]
[1728818994003,0.83793064,62762.0,62761.0,0.003319]
[1728818994232,0.7665451,62762.0,62761.0,0.003319]
[1728818994463,0.814137,62762.0,62761.0,0.003319]
[1728818995354,0.914137,62762.0,62761.0,0.003319]
[1728818995770,0.8665451,62762.0,62761.0,0.003319]
[1728818997782,0.93792962,62762.0,62761.0,0.001319]
[1728818998254,0.93792962,62762.0,62761.0,0.003319]
[1728818999521,0.8665451,62762.0,62761.0,0.003319]
[1728818999959,0.8665451,62762.0,62761.0,0.001319]
[1728818999960,1.54218462,62762.0,62761.0,0.001319]
[1728819000453,1.63736398,62762.0,62761.0,0.001319]
[1728819000654,1.56518462,62762.0,62761.0,0.001319]
[1728819000900,1.36457871,62762.0,62761.0,0.001319]
[1728819001113,1.65914167,62762.0,62761.0,0.001319]
[1728819001342,1.54020142,62762.0,62761.0,0.001319]
[1728819001562,1.70157113,62762.0,62761.0,0.001319]
[1728819003135,1.62190142,62762.0,62761.0,0.001319]
[1728819003977,1.64686884,62762.0,62761.0,0.001319]
[1728819006876,1.76636884,62762.0,62761.0,0.001319]
[1728819007512,1.90909714,62762.0,62761.0,0.001319]
[1728819007720,1.76636884,62762.0,62761.0,0.001319]
[1728819007931,1.92773855,62762.0,62761.0,0.001319]
[1728819008377,2.07046685,62762.0,62761.0,0.001319]
[1728819009487,2.07040206,62762.0,62761.0,0.001319]
[1728819009745,0.91716568,62762.0,62761.0,0.001319]
[1728819009939,1.41716568,62762.0,62761.0,0.001319]
[1728819010166,1.53609461,62762.0,62761.0,0.001319]
[1728819010383,1.53609461,62762.0,62761.0,0.003319]
[1728819010604,1.24157871,62762.0,62761.0,0.003319]
[1728819011070,1.24157871,62762.0,62761.0,0.001319]
[1728819011733,1.34157871,62762.0,62761.0,0.003319]
[1728819013041,1.41411353,62762.0,62761.0,0.003319]
[1728819013252,1.41411353,62762.0,62761.0,0.00283175]
[1728819013497,1.36654312,62762.0,62761.0,0.00283175]
[1728819014664,1.36654312,62762.0,62761.0,0.00083175]
[1728819014873,1.4141044,62762.0,62761.0,0.00083175]
[1728819015299,1.36654312,62762.0,62761.0,0.00083175]
[1728819015515,1.41410149,62762.0,62761.0,0.00083175]
[1728819015728,1.41410149,62762.0,62761.0,0.00283175]
[1728819015729,1.41410154,62762.0,62761.0,0.00283175]
[1728819015933,1.36654312,62762.0,62761.0,0.00283175]
[1728819016587,1.41410154,62762.0,62761.0,0.00283175]
[1728819016808,1.36654312,62762.0,62761.0,0.00283175]
[1728819018513,1.41410154,62762.0,62761.0,0.00283175]
[1728819019166,1.38913713,62762.0,62761.0,0.00283175]
[1728819019386,1.39077513,62762.0,62761.0,0.00283175]
[1728819020726,1.34321671,62762.0,62761.0,0.00283175]
[1728819022285,1.36818158,62762.0,62761.0,0.00283175]
[1728819025632,1.41573946,62762.0,62761.0,0.00283175]
[1728819027712,1.36818158,62762.0,62761.0,0.00283175]
[1728819027965,1.41576113,62762.0,62761.0,0.00283175]
[1728819028191,1.36818158,62762.0,62761.0,0.00283175]
[1728819029622,1.41576113,62762.0,62761.0,0.00283175]
[1728819030765,1.36818158,62762.0,62761.0,0.00283175]
[1728819031721,1.4395184,62762.0,62761.0,0.00283175]
[1728819032174,1.34321671,62762.0,62761.0,0.00283175]
[1728819032406,1.41455353,62762.0,62761.0,0.00283175]
[1728819032856,1.34321671,62762.0,62761.0,0.00283175]
[1728819035103,1.36818116,62762.0,62761.0,0.00283175]
[1728819039605,1.41579599,62762.0,62761.0,0.00283175]
[1728819042300,1.39083154,62762.0,62761.0,0.00283175]
[1728819042784,1.39083154,62762.0,62761.0,0.08573175]
[1728819042785,1.06533916,62762.0,62761.0,0.08573175]
[1728819043028,1.06533916,62762.0,62761.0,0.09770083]
[1728819043504,1.03733916,62762.0,62761.0,0.09770083]
[1728819044505,0.53733916,62762.0,62761.0,0.09770083]
[1728819044756,0.53733916,62762.0,62761.0,0.22130083]
[1728819045243,0.56533916,62762.0,62761.0,0.22130083]
[1728819045457,0.55133916,62762.0,62761.0,0.22130083]
[1728819045682,0.55533916,62762.0,62761.0,0.22130083]
[1728819045910,0.54133916,62762.0,62761.0,0.22130083]
[1728819046871,0.54133916,62762.0,62761.0,0.22127628]
[1728819047576,0.54133916,62762.0,62761.0,0.22327628]
[1728819047793,0.54133916,62762.0,62761.0,0.22127628]
[1728819048674,0.54133916,62762.0,62761.0,0.22327628]
[1728819051178,0.54133916,62762.0,62761.0,0.22127628]
[1728819051860,0.54133916,62762.0,62761.0,0.08573175]
[1728819052127,0.54133916,62762.0,62761.0,0.00283175]
[1728819052395,0.54133916,62762.0,62761.0,0.00783175]
[1728819057230,0.54133916,62762.0,62761.0,0.01976427]
[1728819057682,0.54133916,62762.0,62761.0,0.00783175]
[1728819057908,0.54133916,62762.0,62761.0,0.01976404]
[1728819058133,0.54133916,62762.0,62761.0,0.019764]
[1728819059279,0.54133916,62762.0,62761.0,0.00783175]
[1728819059735,0.54133916,62762.0,62761.0,0.019764]
[1728819060038,0.54133916,62762.0,62761.0,0.104964]
[1728819060451,0.54133916,62762.0,62761.0,0.102964]
[1728819061560,0.54133916,62762.0,62761.0,0.019764]
[1728819064551,0.54133916,62762.0,62761.0,0.021764]
[1728819065667,0.54133916,62762.0,62761.0,0.019764]
[1728819066841,0.54133916,62762.0,62761.0,0.021764]
[1728819070254,0.54133916,62762.0,62761.0,0.0408556]
[1728819071404,0.54133916,62762.0,62761.0,0.04090997]
[1728819071632,0.54133916,62762.0,62761.0,0.07287997]
[1728819072115,0.04133916,62762.0,62761.0,0.23910398]
[1728819072334,0.005638,62762.0,62761.0,0.43280398]
[1728819072655,0.005638,62762.0,62761.0,0.45580398]
[1728819072875,0.001638,62762.0,62761.0,0.45580398]
[1728819073110,0.001638,62762.0,62761.0,0.47374153]
[1728819073327,0.001638,62762.0,62761.0,0.62400398]
[1728819073740,0.001638,62762.0,62761.0,0.63994153]
[1728819073975,0.001638,62762.0,62761.0,0.45580398]
[1728819074193,0.004638,62762.0,62761.0,0.45580398]
[1728819075034,0.004638,62762.0,62761.0,0.45579347]
[1728819075501,0.002638,62762.0,62761.0,0.45179347]
[1728819075738,0.002638,62762.0,62761.0,0.45579347]
[1728819075946,0.002638,62762.0,62761.0,0.45279347]
[1728819075947,0.003638,62762.0,62761.0,0.45279347]
[1728819076165,0.003638,62762.0,62761.0,0.42979347]
[1728819077482,0.003638,62762.0,62761.0,0.31629347]
[1728819077966,0.003638,62762.0,62761.0,0.23609347]
[1728819078611,0.003638,62762.0,62761.0,0.22414435]
[1728819079332,0.003638,62762.0,62761.0,0.23608032]
[1728819079559,0.003638,62762.0,62761.0,0.24802443]
[1728819080498,0.003638,62762.0,62761.0,0.27907793]
[1728819080711,0.003638,62762.0,62761.0,0.26713428]
[1728819080945,0.003638,62762.0,62761.0,0.27907793]
[1728819081896,0.003638,62762.0,62761.0,0.50147793]
[1728819082789,0.002638,62762.0,62761.0,0.49947793]
[1728819083019,0.003638,62762.0,62761.0,0.50147793]
[1728819083450,0.002638,62762.0,62761.0,0.50147793]
[1728819083669,0.001638,62762.0,62761.0,0.49947793]
[1728819083887,0.002638,62762.0,62761.0,0.51147793]
[1728819084338,0.001638,62762.0,62761.0,0.49946396]
[1728819084551,0.002638,62762.0,62761.0,0.54915863]
[1728819084998,0.003638,62762.0,62761.0,0.56115863]
[1728819085708,0.002638,62762.0,62761.0,0.55915863]
[1728819086146,0.003638,62762.0,62761.0,0.57315863]
[1728819086362,0.003638,62762.0,62761.0,0.52546396]
[1728819087241,0.002638,62762.0,62761.0,0.56117329]
[1728819087695,0.003638,62762.0,62761.0,0.52546396]
[1728819087937,0.003638,62762.0,62761.0,0.69366396]
[1728819088376,0.002638,62762.0,62761.0,0.68166396]
[1728819088614,0.002638,62762.0,62761.0,0.76520597]
[1728819088615,0.003638,62762.0,62761.0,0.76520597]
[1728819088832,0.003638,62762.0,62761.0,0.75120597]
[1728819088833,0.002638,62762.0,62761.0,0.75120597]
[1728819089056,0.001638,62762.0,62761.0,0.73920597]
[1728819089276,0.002638,62762.0,62761.0,0.74620597]
[1728819089718,0.002638,62762.0,62761.0,0.83895489]
[1728819089944,0.002638,62762.0,62761.0,0.91055095]
[1728819090167,0.002638,62762.0,62761.0,0.83895489]
[1728819090386,0.002638,62762.0,62761.0,0.95487259]
[1728819090617,0.002638,62762.0,62761.0,1.03434424]
[1728819090842,0.002638,62762.0,62761.0,0.99134557]
[1728819091064,0.003638,62762.0,62761.0,1.00134557]
[1728819091326,0.00164,62767.0,62766.0,0.06897]
[1728819091550,0.00164,62767.0,62766.0,0.26123354]
[1728819091769,0.03777599,62767.0,62766.0,0.26123354]
[1728819092263,0.6111,62783.0,62772.0,0.005]
[1728819092507,0.6111,62783.0,62772.0,0.25723354]
[1728819092756,0.6111,62783.0,62780.0,0.009]
[1728819092993,0.6111,62783.0,62780.0,0.02093828]
[1728819093225,0.27492012,62781.0,62780.0,0.02093828]
[1728819093486,0.03613696,62781.0,62780.0,0.02093828]
[1728819093718,0.03613696,62781.0,62780.0,0.05290828]
[1728819093943,0.5,62783.0,62782.0,0.04097]
[1728819094186,0.5,62783.0,62782.0,0.05290828]
[1728819094411,0.5,62783.0,62782.0,0.04890828]
[1728819094671,0.5,62783.0,62782.0,0.05290828]
[1728819095579,0.5,62783.0,62782.0,0.04890828]
[1728819095812,0.5,62783.0,62782.0,0.05290828]
[1728819096061,0.5,62783.0,62782.0,0.22346485]
[1728819096299,0.5,62783.0,62782.0,0.22146485]
[1728819096464,0.501,62783.0,62782.0,0.22246485]
[1728819096734,0.501,62783.0,62782.0,0.22446485]
[1728819097141,0.501,62783.0,62782.0,0.22246485]
[1728819097346,0.6102,62783.0,62782.0,0.06324084]
[1728819098726,0.6899,62783.0,62782.0,0.06324084]
[1728819100677,0.691538,62783.0,62782.0,0.06324084]
[1728819102381,0.691538,62783.0,62782.0,0.06323779]
[1728819102572,0.691538,62783.0,62782.0,0.05130256]
[1728819102843,0.691538,62783.0,62782.0,0.06323782]
[1728819103260,0.691538,62783.0,62782.0,0.06523782]
[1728819103472,0.691538,62783.0,62782.0,0.06323782]
[1728819103743,0.582338,62783.0,62782.0,0.06123782]
[1728819103944,0.582338,62783.0,62782.0,0.06523782]
[1728819103945,0.502638,62783.0,62782.0,0.06523782]
[1728819105262,0.53887043,62783.0,62782.0,0.24555826]
[1728819105472,0.03887043,62783.0,62782.0,0.24555826]
[1728819105906,0.002638,62783.0,62782.0,0.24555826]
[1728819108266,0.002558,62783.0,62782.0,0.24555826]
[1728819109448,0.002558,62783.0,62782.0,0.21358826]
[1728819109675,0.002558,62783.0,62782.0,0.24555826]
[1728819109904,0.002558,62783.0,62782.0,0.24554824]
[1728819113067,0.03911255,62783.0,62782.0,0.24554824]
[1728819114158,0.03911255,62783.0,62782.0,0.08232423]
[1728819114409,0.03911255,62783.0,62782.0,0.08432423]
[1728819114631,0.03911255,62783.0,62782.0,0.06523397]
[1728819114859,0.03911255,62783.0,62782.0,0.06323397]
[1728819115324,0.03911255,62783.0,62782.0,0.08232423]
[1728819115553,0.03911255,62783.0,62782.0,0.08432423]
[1728819118632,0.03911255,62783.0,62782.0,0.05330256]
[1728819119728,0.03911255,62783.0,62782.0,0.0843664]
[1728819120588,0.03911255,62783.0,62782.0,0.0803664]
[1728819120838,0.03911255,62783.0,62782.0,0.05330256]
[1728819121279,0.03911255,62783.0,62782.0,0.08437332]
[1728819122197,0.03819255,62783.0,62782.0,0.08437332]
[1728819122409,0.03919255,62783.0,62782.0,0.08437332]
[1728819122868,0.03819255,62783.0,62782.0,0.08137332]
[1728819123093,0.03819255,62783.0,62782.0,0.08537332]
[1728819123558,0.03819255,62783.0,62782.0,0.08437332]
[1728819123772,0.03919255,62783.0,62782.0,0.09637332]
[1728819123990,0.03919255,62783.0,62782.0,0.06530256]
[1728819124202,0.03919255,62783.0,62782.0,0.09638896]
[1728819124482,0.03919255,62783.0,62782.0,0.0933884]
[1728819125340,0.03919255,62783.0,62782.0,0.0942074]
[1728819125783,0.03919255,62783.0,62782.0,0.0902074]
[1728819126036,0.03919255,62783.0,62782.0,0.0942074]
[1728819126273,0.03919255,62783.0,62782.0,0.1082074]
[1728819130963,0.03919255,62783.0,62782.0,0.0942074]
[1728819131183,0.03819255,62783.0,62782.0,0.0822074]
[1728819131401,0.03819255,62783.0,62782.0,0.0872074]
[1728819131826,0.03819255,62783.0,62782.0,0.05612156]
[1728819132049,0.03819255,62783.0,62782.0,0.08721263]
[1728819132262,0.03819255,62783.0,62782.0,0.08521263]
[1728819132486,0.73359255,62783.0,62782.0,0.08721263]
[1728819132699,0.73359255,62783.0,62782.0,0.08621263]
[1728819132928,0.73359255,62783.0,62782.0,0.08121263]
[1728819133358,0.73359255,62783.0,62782.0,0.08621263]
[1728819134723,0.73359255,62783.0,62782.0,0.08421263]
[1728819134940,0.73359255,62783.0,62782.0,0.08621263]
[1728819135385,0.73359255,62783.0,62782.0,0.08421263]
[1728819135597,0.73359255,62783.0,62782.0,0.08621263]
[1728819136501,0.73359255,62783.0,62782.0,0.07688021]
[1728819136960,0.73359255,62783.0,62782.0,0.05774716]
[1728819137193,0.73359255,62783.0,62782.0,0.05574716]
[1728819137439,0.73359255,62783.0,62782.0,0.05674716]
[1728819137665,0.73359255,62783.0,62782.0,0.05174716]
[1728819137893,0.73359255,62783.0,62782.0,0.04674716]
[1728819137894,0.73459255,62783.0,62782.0,0.04674716]
[1728819138113,0.73459255,62783.0,62782.0,0.05474716]
[1728819138114,0.73359255,62783.0,62782.0,0.05474716]
[1728819138636,0.73459255,62783.0,62782.0,0.05474716]
[1728819139566,0.73459255,62783.0,62782.0,0.02277716]
[1728819139807,0.73459255,62783.0,62782.0,0.01977716]
[1728819140032,0.73459255,62783.0,62782.0,0.01777716]
[1728819140250,0.73459255,62783.0,62782.0,0.02277716]
[1728819141614,0.73459255,62783.0,62782.0,0.01777716]
[1728819143703,0.7595445,62783.0,62782.0,0.01777716]
[1728819144849,0.7595445,62783.0,62782.0,0.005819]